bitfinex/quotes_SOLUSD_20250528
["timestamp","ask_amount","ask_price","bid_price","bid_amount"]
[1748469869146,6.12205278,171.3,171.27,16.8381779]
[1748469870553,6.12205278,171.3,171.23,18.64964886]
[1748469870760,0.28432314,171.28,171.22,1.5555]
[1748469870965,0.28432314,171.28,171.24,16.8381779]
[1748469871158,89.5,171.31,171.26,16.8381779]
[1748469871346,0.28432314,171.3,171.26,16.8381779]
[1748469872589,0.28432314,171.3,171.27,16.8381779]
[1748469873845,0.28432314,171.32,171.28,16.8381779]
[1748469875800,9.48,171.33,171.31,16.8381779]
[1748469876004,9.48,171.33,171.32,16.8381779]
[1748469876969,9.48,171.33,171.31,16.8381779]
[1748469877177,9.48,171.33,171.3,16.8381779]
[1748469878096,9.48,171.33,171.31,16.8381779]
[1748469886015,9.48,171.33,171.32,16.8381779]
[1748469886382,9.48,171.33,171.31,16.8381779]
[1748469889118,0.28432314,171.34,171.31,16.8381779]
[1748469891909,0.28432314,171.31,171.26,16.8381779]
[1748469892099,17.12250104,171.29,171.24,16.8381779]
[1748469892307,17.12250104,171.29,171.21,7.9486]
[1748469892308,16.8381779,171.27,171.22,16.8381779]
[1748469892631,0.28432314,171.26,171.22,16.8381779]
[1748469894507,22.96182751,171.26,171.22,16.8381779]
[1748469894908,22.96182751,171.26,171.21,16.8381779]
[1748469897796,22.96182751,171.26,171.17,34.2011]
[1748469898130,22.96182751,171.26,171.17,18.4150779]
[1748469898131,16.8381779,171.21,171.17,18.4150779]
[1748469899224,0.14216157,171.22,171.17,18.4150779]
[1748469899426,17.12250104,171.22,171.17,18.4150779]
[1748469900321,17.12250104,171.22,171.18,16.8381779]
[1748469900503,17.12250104,171.22,171.17,18.4150779]
[1748469901025,22.96296247,171.22,171.17,18.4150779]
[1748469901710,17.12250104,171.22,171.17,18.4150779]
[1748469904022,16.8381779,171.21,171.16,16.8381779]
[1748469905617,16.8381779,171.19,171.13,1.5795]
[1748469905814,16.8381779,171.19,171.15,16.8381779]
[1748469906013,52.9381779,171.22,171.18,16.8381779]
[1748469906227,9.48,171.23,171.18,16.8381779]
[1748469906526,0.14216157,171.22,171.18,16.8381779]
[1748469906716,0.28432314,171.22,171.18,16.8381779]
[1748469907032,17.12250104,171.22,171.17,16.8381779]
[1748469908718,17.12250104,171.22,171.18,16.8381779]
[1748469909114,22.96296343,171.22,171.18,16.8381779]
[1748469909315,17.12250104,171.19,171.15,16.8381779]
[1748469909618,17.12250104,171.18,171.13,18.4176779]
[1748469909817,17.12250104,171.18,171.13,16.8381779]
[1748469910503,17.12250104,171.18,171.11,16.8381779]
[1748469910504,17.12250104,171.16,171.11,16.8381779]
[1748469910717,17.12250104,171.16,171.09,16.8381779]
[1748469910718,17.12250104,171.14,171.09,16.8381779]
[1748469911016,16.8381779,171.13,171.09,16.8381779]
[1748469911417,0.28432314,171.12,171.08,16.8381779]
[1748469911655,16.8381779,171.11,171.07,16.8381779]
[1748469912141,16.8381779,171.11,171.06,16.8381779]
[1748469912512,9.48,171.11,171.1,16.8381779]
[1748469914032,9.48,171.11,171.06,18.64964886]
[1748469914227,9.48,171.11,171.1,16.8381779]
[1748469916949,9.48,171.11,171.09,16.8381779]
[1748469917138,9.48,171.11,171.07,16.8381779]
[1748469917312,26.3181779,171.11,171.07,16.8381779]
[1748469917506,26.3181779,171.11,171.06,16.8381779]
[1748469917836,0.28432314,171.1,171.06,16.8381779]
[1748469918221,17.12250104,171.1,171.05,16.8381779]
[1748469918423,0.28432314,171.08,171.01,26.84064886]
[1748469918737,17.12250104,171.08,171.03,16.8381779]
[1748469919114,0.28432314,171.08,171.04,16.8381779]
[1748469919638,0.28432314,171.08,171.05,16.8381779]
[1748469919840,36.12,171.1,171.07,16.8381779]
[1748469920817,36.12,171.1,171.06,16.8381779]
[1748469921246,52.9581779,171.1,171.06,16.8381779]
[1748469922257,0.28432314,171.09,171.05,16.8381779]
[1748469922748,0.28432314,171.09,171.06,16.8381779]
[1748469923042,0.28432314,171.09,171.05,16.8381779]
[1748469923241,17.12250104,171.09,171.04,16.8381779]
[1748469923828,17.12250104,171.09,171.0,16.8381779]
[1748469924038,50.73133839,171.1,170.98,18.64964886]
[1748469924039,16.8381779,171.05,171.01,16.8381779]
[1748469924242,17.12250104,171.06,171.01,16.8381779]
[1748469924422,9.48,171.05,170.98,44.64964886]
[1748469924626,9.48,171.05,171.02,16.8381779]
[1748469925921,9.48,171.05,171.04,16.8381779]
[1748469926928,9.48,171.05,171.03,16.8381779]
[1748469929527,9.48,171.05,171.02,16.8381779]
[1748469929732,9.48,171.05,171.01,16.8381779]
[1748469930246,26.3181779,171.05,171.01,16.8381779]
[1748469930752,9.48,171.05,171.02,16.8381779]
[1748469931119,41.32638541,171.05,170.96,1.5988]
[1748469931382,0.28432314,171.04,171.01,16.8381779]
[1748469931558,26.28432314,171.04,171.01,16.8381779]
[1748469931719,26.0,171.05,171.03,16.8381779]
[1748469932048,9.48,171.05,171.04,16.8381779]
[1748469936329,9.48,171.05,171.0,18.64964886]
[1748469936532,9.48,171.05,171.04,16.8381779]
[1748469937433,0.14216157,171.04,171.01,16.8381779]
[1748469937636,0.28432314,171.04,171.01,16.8381779]
[1748469939272,0.28432314,171.04,170.99,26.0]
[1748469939570,0.28432314,171.04,171.01,16.8381779]
[1748469940350,0.28432314,171.04,171.02,16.8381779]
[1748469942059,0.28432314,171.04,171.01,16.8381779]
[1748469942245,6.13095209,171.04,171.0,16.8381779]
[1748469942450,0.28432314,171.02,170.98,16.8381779]
[1748469942646,17.12250104,171.02,170.97,16.8381779]
[1748469942848,59.08997275,171.02,170.97,16.8381779]
[1748469943245,0.28432314,171.0,170.97,16.8381779]
[1748469943443,9.48,170.99,170.92,20.29744886]
[1748469943663,9.48,170.99,170.92,18.64964886]
[1748469943866,9.48,170.99,170.96,16.8381779]
[1748469944170,0.28432314,170.98,170.95,16.8381779]
[1748469944341,0.28432314,170.98,170.89,18.64964886]
[1748469944669,0.28432314,170.98,170.95,16.8381779]
[1748469944853,0.28432314,170.98,170.96,16.8381779]
[1748469945050,9.48,170.99,170.96,16.8381779]
[1748469945263,9.48,170.99,170.97,16.8381779]
[1748469945767,9.76432314,170.99,170.94,1.5371]
[1748469946070,9.48,171.04,170.98,16.8381779]
[1748469946279,0.28432314,171.03,170.98,16.8381779]
[1748469946464,0.28432314,171.03,170.96,18.64964886]
[1748469946663,16.98033947,171.03,170.98,16.8381779]
[1748469946861,0.14216157,171.01,170.97,16.8381779]
[1748469947072,0.28432314,171.01,170.97,16.8381779]
[1748469947570,17.12250104,171.01,170.94,1.5371]
[1748469947876,36.64432314,171.01,170.97,16.8381779]
[1748469948866,36.64432314,171.01,170.98,16.8381779]
[1748469949751,36.64432314,171.01,170.97,16.8381779]
[1748469950274,36.64432314,171.01,170.98,16.8381779]
[1748469950451,16.8381779,171.0,170.94,26.0]
[1748469950652,16.8381779,171.0,170.96,16.8381779]
[1748469950875,59.33015158,171.01,170.97,16.8381779]
[1748469951049,53.48250104,171.01,170.97,16.8381779]
[1748469951476,36.64432314,171.01,170.97,16.8381779]
[1748469954853,59.33014514,171.01,170.97,16.8381779]
[1748469955389,59.33014514,171.01,170.94,26.0]
[1748469955680,59.33014514,171.01,170.96,16.8381779]
[1748469957352,53.48250104,171.01,170.96,16.8381779]
[1748469957950,59.33015931,171.01,170.97,16.8381779]
[1748469959462,9.6,171.0,170.97,16.8381779]
[1748469959662,0.28432314,170.99,170.96,16.8381779]
[1748469959857,0.28432314,170.99,170.95,16.8381779]
[1748469961457,17.12250104,170.99,170.95,16.8381779]
[1748469961858,22.9708915,170.99,170.95,16.8381779]
[1748469962378,0.28432314,170.99,170.95,16.8381779]
[1748469962766,0.28432314,170.99,170.96,16.8381779]
[1748469962964,0.28432314,170.99,170.97,16.8381779]
[1748469963779,9.6,171.0,170.98,16.8381779]
[1748469964082,9.6,171.0,170.95,1.5626]
[1748469964287,9.6,171.0,170.97,16.8381779]
[1748469965579,9.6,171.0,170.98,16.8381779]
[1748469967670,9.6,171.0,170.99,16.8381779]
[1748469968783,0.28432314,171.04,170.99,16.8381779]
[1748469968959,0.28432314,171.04,171.02,16.8381779]
[1748469969162,0.28432314,171.04,171.01,16.8381779]
[1748469972781,0.28432314,171.04,171.02,16.8381779]
[1748469973170,9.6,171.05,171.02,16.8381779]
[1748469975791,9.6,171.05,170.96,18.64964886]
[1748469975974,9.6,171.05,171.01,16.8381779]
[1748469977786,9.6,171.05,170.96,18.64964886]
[1748469977972,9.6,171.05,171.01,16.8381779]
[1748469978368,9.6,171.05,171.02,16.8381779]
[1748469979096,9.6,171.05,171.03,16.8381779]
[1748469980684,9.6,171.05,171.04,16.8381779]
[1748469981377,9.6,171.05,170.97,26.0]
[1748469981582,9.6,171.05,171.03,16.8381779]
[1748469981977,0.28432314,171.04,170.97,26.0]
[1748469982297,0.28432314,171.02,170.98,16.8381779]
[1748469983379,6.13161498,171.02,170.98,16.8381779]
[1748469984391,6.13161498,171.02,170.99,16.8381779]
[1748469987016,6.13161498,171.02,170.95,1.5626]
[1748469987188,22.96979288,171.02,170.97,16.8381779]
[1748469988098,22.96979288,171.02,170.98,16.8381779]
[1748469990320,22.96979288,171.02,170.95,1.5626]
[1748469990321,16.8381779,171.01,170.96,16.8381779]
[1748469991005,0.14216157,170.99,170.95,18.4007779]
[1748469991212,9.82432314,170.99,170.95,16.8381779]
[1748469991395,32.51087794,170.99,170.95,16.8381779]
[1748469991989,15.67270004,170.99,170.95,16.8381779]
[1748469992289,9.82432314,170.99,170.95,16.8381779]
[1748469994495,15.67270215,170.99,170.95,16.8381779]
[1748469994698,32.51088005,170.99,170.91,1.6335]
[1748469994991,32.51088005,170.99,170.95,16.8381779]
[1748469995904,9.82432314,170.99,170.95,16.8381779]
[1748469996108,9.82432314,170.99,170.96,16.8381779]
[1748469996515,9.82432314,170.99,170.97,16.8381779]
[1748470000333,9.54,170.99,170.97,16.8381779]
[1748470000905,9.54,170.99,170.98,16.8381779]
[1748470007032,15.67196976,171.01,170.98,16.8381779]
[1748470008404,9.82432314,171.01,170.98,16.8381779]
[1748470010521,15.6719643,171.01,170.98,16.8381779]
[1748470011223,43.12250104,171.0,170.91,18.4716779]
[1748470011443,43.12250104,171.0,170.95,16.8381779]
[1748470011742,0.28432314,170.98,170.95,16.8381779]
[1748470012537,6.13307022,170.98,170.95,16.8381779]
[1748470013617,0.28432314,170.98,170.96,16.8381779]
[1748470014042,0.28432314,170.99,170.97,16.8381779]
[1748470014230,0.28432314,170.99,170.98,16.8381779]
[1748470014432,0.28432314,170.99,170.96,16.8381779]
[1748470014636,6.1328463,170.99,170.96,16.8381779]
[1748470015741,0.28432314,170.99,170.96,16.8381779]
[1748470016321,0.28432314,170.98,170.96,16.8381779]
[1748470016844,0.28432314,170.98,170.91,44.4716779]
[1748470016845,0.28432314,170.98,170.91,27.6335]
[1748470017049,6.13296063,170.98,170.95,16.8381779]
[1748470017246,6.13296063,170.98,170.91,44.4716779]
[1748470017547,6.13296063,170.98,170.95,16.8381779]
[1748470022051,0.14216157,170.98,170.96,16.8381779]
[1748470022356,0.28432314,170.98,170.96,16.8381779]
[1748470023791,0.28432314,171.0,170.97,16.8381779]
[1748470024063,0.28432314,171.0,170.98,16.8381779]
[1748470024274,0.28432314,171.0,170.96,16.8381779]
[1748470024471,0.28432314,171.0,170.97,16.8381779]
[1748470025031,6.13243698,171.0,170.97,16.8381779]
[1748470025842,0.28432314,171.0,170.97,16.8381779]
[1748470027870,0.28432314,171.0,170.98,16.8381779]
[1748470028064,9.54,171.01,170.99,16.8381779]
[1748470029264,0.28432314,171.0,170.92,167.04964886]
[1748470029440,0.28432314,171.0,170.98,16.8381779]
[1748470030265,0.28432314,171.0,170.91,192.8716779]
[1748470030266,0.28432314,171.0,170.91,166.8716779]
[1748470030449,0.28432314,171.0,170.93,26.0]
[1748470030653,0.28432314,171.0,170.96,16.8381779]
[1748470031170,17.12250104,171.0,170.95,16.8381779]
[1748470031503,16.8381779,170.97,170.93,16.8381779]
[1748470031671,16.8381779,170.97,170.91,1.6335]
[1748470031981,16.8381779,170.97,170.92,16.8381779]
[1748470032272,0.28432314,170.96,170.91,1.6335]
[1748470032577,0.28432314,170.94,170.91,1.6335]
[1748470032759,0.28432314,170.94,170.92,16.8381779]
[1748470033644,0.28432314,170.94,170.89,26.0]
[1748470033847,0.28432314,170.94,170.92,16.8381779]
[1748470035670,0.28432314,170.94,170.89,26.0]
[1748470035671,0.28432314,170.94,170.93,16.8381779]
[1748470037875,0.28432314,170.94,170.89,26.0]
[1748470038174,0.28432314,170.94,170.93,16.8381779]
[1748470038670,0.28432314,170.94,170.92,16.8381779]
[1748470042160,0.28432314,170.94,170.89,26.0]
[1748470042356,0.28432314,170.94,170.91,16.8381779]
[1748470044680,0.28432314,170.94,170.92,16.8381779]
[1748470048260,0.28432314,170.94,170.9,16.8381779]
[1748470049286,22.97256684,170.94,170.87,1.6338]
[1748470049461,16.8381779,170.91,170.86,16.8381779]
[1748470049873,0.28432314,170.9,170.86,16.8381779]
[1748470051565,0.28432314,170.9,170.87,16.8381779]
[1748470051984,0.28432314,170.9,170.86,16.8381779]
[1748470052283,9.48,170.89,170.82,33.9695]
[1748470052493,9.48,170.89,170.86,16.8381779]
[1748470053373,9.48,170.89,170.87,16.8381779]
[1748470053374,0.28432314,170.88,170.87,16.8381779]
[1748470053568,0.28432314,170.88,170.82,33.9695]
[1748470053768,0.28432314,170.88,170.87,16.8381779]
[1748470054076,0.28432314,170.88,170.86,16.8381779]
[1748470056489,0.28432314,170.88,170.87,16.8381779]
[1748470056685,9.48,170.89,170.87,16.8381779]
[1748470056892,9.48,170.89,170.88,16.8381779]
[1748470058177,9.48,170.94,170.88,18.4340779]
[1748470058377,9.76432314,170.94,170.93,16.8381779]
[1748470059103,9.76432314,170.94,170.92,16.8381779]
[1748470062992,0.28432314,170.93,170.91,16.8381779]
[1748470063513,0.28432314,170.93,170.9,16.8381779]
[1748470064393,17.12250104,170.93,170.88,16.8381779]
[1748470065107,0.28432314,170.91,170.88,16.8381779]
[1748470065606,17.12250104,170.91,170.83,27.5339]
[1748470065913,0.28432314,170.91,170.87,16.8381779]
[1748470066086,0.28432314,170.91,170.88,16.8381779]
[1748470067115,0.28432314,170.91,170.9,16.8381779]
[1748470067432,0.28432314,170.91,170.89,16.8381779]
[1748470071321,0.28432314,170.93,170.89,16.8381779]
[1748470074108,0.28432314,170.93,170.9,16.8381779]
[1748470077740,0.28432314,170.93,170.91,16.8381779]
[1748470078322,0.28432314,170.93,170.89,16.8381779]
[1748470078530,17.12250104,170.93,170.89,16.8381779]
[1748470078847,22.97300351,170.93,170.89,16.8381779]
[1748470079025,6.13482561,170.93,170.89,16.8381779]
[1748470079338,22.97300351,170.93,170.88,16.8381779]
[1748470079726,0.28432314,170.91,170.88,16.8381779]
[1748470080834,6.13552449,170.91,170.88,16.8381779]
[1748470081442,22.97370239,170.91,170.87,16.8381779]
[1748470082852,6.13552449,170.91,170.87,16.8381779]
[1748470083767,0.28432314,170.91,170.88,16.8381779]
[1748470084458,9.76432314,170.91,170.88,16.8381779]
[1748470086679,9.76432314,170.91,170.89,16.8381779]
[1748470088260,9.48,170.91,170.9,16.8381779]
[1748470092089,9.48,170.91,170.86,26.0]
[1748470092394,9.48,170.91,170.9,16.8381779]
[1748470092978,9.48,170.91,170.86,26.0]
[1748470093177,0.28432314,170.9,170.87,16.8381779]
[1748470093391,17.12250104,170.9,170.86,16.8381779]
[1748470093598,5.85171747,170.89,170.86,16.8381779]
[1748470094599,0.28432314,170.89,170.86,16.8381779]
[1748470095594,0.28432314,170.88,170.86,16.8381779]
[1748470096505,0.28432314,170.88,170.85,16.8381779]
[1748470097479,0.28432314,170.88,170.84,16.8381779]
[1748470097698,0.28432314,170.86,170.84,16.8381779]
[1748470098081,26.3181779,170.89,170.84,16.8381779]
[1748470098301,0.28432314,170.88,170.86,16.8381779]
[1748470101688,0.28432314,170.9,170.86,16.8381779]
[1748470101901,0.28432314,170.88,170.86,16.8381779]
[1748470102786,0.28432314,170.88,170.85,16.8381779]
[1748470103184,0.28432314,170.88,170.82,26.0]
[1748470103493,0.28432314,170.88,170.85,16.8381779]
[1748470105421,0.28432314,170.88,170.86,16.8381779]
[1748470107705,0.28432314,170.88,170.87,16.8381779]
[1748470108832,0.28432314,170.88,170.86,16.8381779]
[1748470109337,0.28432314,170.88,170.85,16.8381779]
[1748470110431,0.28432314,170.88,170.86,16.8381779]
[1748470111122,0.28432314,170.88,170.83,26.0]
[1748470111123,6.13638609,170.88,170.85,16.8381779]
[1748470111301,0.28432314,170.86,170.82,16.8381779]
[1748470111721,0.28432314,170.86,170.83,16.8381779]
[1748470112444,6.13709011,170.86,170.83,16.8381779]
[1748470115051,22.97526801,170.86,170.82,16.8381779]
[1748470115353,59.09526801,170.86,170.82,16.8381779]
[1748470115524,59.09526801,170.86,170.81,16.8381779]
[1748470116224,59.09526801,170.86,170.8,1.5614]
[1748470116535,59.09526801,170.86,170.81,16.8381779]
[1748470117048,59.09526801,170.86,170.76,148.4]
[1748470117255,0.28432314,170.84,170.8,16.8381779]
[1748470117454,0.28432314,170.82,170.81,16.8381779]
[1748470117822,0.28432314,170.82,170.76,26.0]
[1748470118024,0.28432314,170.82,170.81,16.8381779]
[1748470118233,0.28432314,170.82,170.76,26.0]
[1748470118443,0.28432314,170.82,170.8,16.8381779]
[1748470119942,0.28432314,170.82,170.81,16.8381779]
[1748470121645,9.46,170.83,170.81,16.8381779]
[1748470121838,9.46,170.83,170.82,16.8381779]
[1748470123542,9.74432314,170.83,170.82,16.8381779]
[1748470125448,9.74432314,170.83,170.81,16.8381779]
[1748470126041,9.74432314,170.83,170.82,16.8381779]
[1748470131355,0.28432314,170.82,170.76,174.4]
[1748470131675,0.28432314,170.82,170.81,16.8381779]
[1748470132043,0.28432314,170.82,170.81,10.84895356]
[1748470137172,9.46,170.83,170.81,10.84895356]
[1748470137350,9.74432314,170.83,170.82,10.84895356]
[1748470138069,9.74432314,170.83,170.76,18.64964886]
[1748470138269,9.74432314,170.83,170.76,148.4]
[1748470138270,0.28432314,170.82,170.76,148.4]
[1748470138447,0.28432314,170.82,170.81,10.84895356]
[1748470138648,9.46,170.83,170.81,10.84895356]
[1748470138851,9.74432314,170.83,170.82,10.84895356]
[1748470139044,9.74432314,170.83,170.81,10.84895356]
[1748470139250,0.28432314,170.82,170.81,10.84895356]
[1748470140072,9.46,170.83,170.81,10.84895356]
[1748470140375,9.74432314,170.83,170.82,10.84895356]
[1748470141278,0.28432314,170.82,170.81,10.84895356]
[1748470141452,0.28432314,170.82,170.8,10.84895356]
[1748470141810,0.28432314,170.82,170.75,182.1081]
[1748470142007,0.28432314,170.82,170.8,10.84895356]
[1748470142982,6.13854203,170.82,170.75,33.7081]
[1748470143310,6.13854203,170.82,170.79,10.84895356]
[1748470143902,6.13854203,170.82,170.78,10.84895356]
[1748470144208,6.13854203,170.82,170.79,10.84895356]
[1748470144505,6.13854203,170.82,170.78,10.84895356]
[1748470147431,16.98749559,170.82,170.78,10.84895356]
[1748470149892,6.13854203,170.82,170.78,10.84895356]
[1748470152425,16.98749559,170.82,170.78,10.84895356]
[1748470152920,6.13854203,170.82,170.78,10.84895356]
[1748470153104,16.98749559,170.82,170.78,10.84895356]
[1748470153619,42.23854203,170.82,170.79,10.84895356]
[1748470153994,9.46,170.83,170.81,10.84895356]
[1748470154197,9.46,170.83,170.82,10.84895356]
[1748470154413,9.74432314,170.83,170.82,10.84895356]
[1748470154608,0.28432314,170.82,170.81,10.84895356]
[1748470155124,0.14216157,170.82,170.8,10.84895356]
[1748470155311,0.28432314,170.82,170.8,10.84895356]
[1748470156510,9.46,170.83,170.81,10.84895356]
[1748470156697,9.46,170.83,170.82,10.84895356]
[1748470157925,9.46,170.86,170.82,10.84895356]
[1748470158102,9.46,170.86,170.85,10.84895356]
[1748470158302,9.74432314,170.86,170.84,10.84895356]
[1748470158494,9.60216157,170.86,170.84,10.84895356]
[1748470164006,9.74432314,170.86,170.85,10.84895356]
[1748470168002,9.74432314,170.86,170.84,10.84895356]
[1748470171406,9.74432314,170.86,170.85,10.84895356]
[1748470171937,9.74432314,170.86,170.84,10.84895356]
[1748470173725,0.28432314,170.85,170.84,10.84895356]
[1748470175435,0.28432314,170.85,170.8,1.6187]
[1748470175634,0.28432314,170.85,170.84,10.84895356]
[1748470176317,9.46,170.86,170.84,10.84895356]
[1748470176514,9.74432314,170.86,170.85,10.84895356]
[1748470177323,9.74432314,170.86,170.84,10.84895356]
[1748470179058,9.74432314,170.86,170.85,10.84895356]
[1748470180409,9.74432314,170.86,170.84,10.84895356]
[1748470181313,9.74432314,170.86,170.8,1.6187]
[1748470181314,9.74432314,170.86,170.85,10.84895356]
[1748470184513,9.74432314,170.86,170.84,10.84895356]
[1748470194031,0.28432314,170.85,170.83,10.84895356]
[1748470194552,11.1332767,170.85,170.8,10.84895356]
[1748470194856,0.28432314,170.83,170.8,10.84895356]
[1748470195423,6.13825087,170.83,170.8,10.84895356]
[1748470195840,6.13825087,170.83,170.79,159.24895356]
[1748470196234,6.13825087,170.83,170.79,148.4]
[1748470196436,6.13825087,170.83,170.79,10.84895356]
[1748470197763,10.84895356,170.82,170.78,10.84895356]
[1748470197942,20.5732767,170.81,170.77,10.84895356]
[1748470199359,20.5732767,170.81,170.74,26.0]
[1748470199538,20.5732767,170.81,170.76,10.84895356]
[1748470199958,26.42792088,170.81,170.76,10.84895356]
[1748470200349,26.42792088,170.81,170.73,1.6332]
[1748470200350,0.28432314,170.78,170.75,10.84895356]
[1748470200861,0.28432314,170.78,170.76,10.84895356]
[1748470201035,9.44,170.81,170.77,10.84895356]
[1748470201236,0.14216157,170.8,170.78,10.84895356]
[1748470202160,0.28432314,170.8,170.78,10.84895356]
[1748470204239,0.28432314,170.8,170.77,10.84895356]
[1748470205032,0.28432314,170.8,170.78,10.84895356]
[1748470206231,9.44,170.81,170.79,10.84895356]
[1748470206431,9.44,170.81,170.8,10.84895356]
[1748470206971,9.42,170.86,170.8,10.84895356]
[1748470207138,9.42,170.86,170.84,10.84895356]
[1748470207344,9.42,170.86,170.83,10.84895356]
[1748470208364,9.42,170.86,170.84,10.84895356]
[1748470211158,9.42,170.86,170.85,10.84895356]
[1748470211361,9.70432314,170.86,170.79,150.0143]
[1748470211545,0.28432314,170.83,170.8,10.84895356]
[1748470212064,0.28432314,170.83,170.8,16.95124273]
[1748470212440,0.28432314,170.83,170.81,16.95124273]
[1748470212744,0.28432314,170.85,170.82,16.95124273]
[1748470213058,0.28432314,170.85,170.83,16.95124273]
[1748470213650,0.28432314,170.85,170.82,16.95124273]
[1748470214445,6.13741361,170.85,170.81,16.95124273]
[1748470215484,0.28432314,170.82,170.79,16.95124273]
[1748470215786,0.28432314,170.82,170.8,16.95124273]
[1748470216477,0.28432314,170.82,170.81,16.95124273]
[1748470216653,36.04,170.85,170.81,16.95124273]
[1748470216849,0.28432314,170.84,170.81,16.95124273]
[1748470217047,0.28432314,170.84,170.8,16.95124273]
[1748470217462,0.28432314,170.84,170.76,6.4608]
[1748470217463,17.23556587,170.84,170.79,16.95124273]
[1748470218342,17.23556587,170.84,170.8,16.95124273]
[1748470220656,23.08903211,170.84,170.8,16.95124273]
[1748470221075,17.23556587,170.84,170.8,16.95124273]
[1748470221254,23.08913972,170.84,170.8,16.95124273]
[1748470221574,23.08913972,170.84,170.79,16.95124273]
[1748470222985,23.08913972,170.84,170.8,16.95124273]
[1748470224172,23.08913972,170.84,170.76,6.4608]
[1748470224173,17.23556587,170.82,170.76,6.4608]
[1748470224355,16.95124273,170.81,170.77,16.95124273]
[1748470224763,0.28432314,170.81,170.78,16.95124273]
[1748470231217,0.28432314,170.81,170.79,16.95124273]
[1748470233492,0.28432314,170.82,170.79,16.95124273]
[1748470234074,0.28432314,170.82,170.78,16.95124273]
[1748470234498,17.23556587,170.82,170.75,150.0455]
[1748470234704,17.23556587,170.82,170.75,1.6455]
[1748470234999,0.28432314,170.8,170.76,16.95124273]
[1748470236710,6.13921181,170.8,170.76,16.95124273]
[1748470237313,0.28432314,170.78,170.74,148.4]
[1748470237512,0.28432314,170.78,170.75,16.95124273]
[1748470238510,6.1399627,170.78,170.75,16.95124273]
[1748470238709,0.28432314,170.78,170.75,16.95124273]
[1748470240502,0.28432314,170.78,170.73,26.0]
[1748470240681,0.28432314,170.78,170.75,16.95124273]
[1748470240884,0.28432314,170.78,170.74,16.95124273]
[1748470241281,6.13994641,170.78,170.74,16.95124273]
[1748470242785,0.28432314,170.78,170.74,16.95124273]
[1748470243813,23.09117217,170.78,170.72,6.0068]
[1748470244015,23.09117217,170.78,170.74,16.95124273]
[1748470244310,16.95124273,170.77,170.71,1.6394]
[1748470244493,0.28432314,170.75,170.72,16.95124273]
[1748470245690,17.23556587,170.75,170.71,18.59064273]
[1748470245890,17.23556587,170.75,170.71,16.95124273]
[1748470246111,23.09208308,170.75,170.71,16.95124273]
[1748470246307,0.28432314,170.73,170.68,6.5577]
[1748470246514,0.28432314,170.73,170.69,16.95124273]
[1748470246700,0.28432314,170.73,170.7,16.95124273]
[1748470247390,0.28432314,170.73,170.69,16.95124273]
[1748470249298,16.95124273,170.72,170.68,16.95124273]
[1748470249496,16.95124273,170.72,170.67,1.5436]
[1748470249497,16.95124273,170.72,170.67,18.49484273]
[1748470249898,16.95124273,170.72,170.68,16.95124273]
[1748470250944,36.02,170.75,170.68,16.95124273]
[1748470251106,17.23556587,170.74,170.69,16.95124273]
[1748470251299,0.28432314,170.72,170.68,16.95124273]
[1748470253021,17.23556587,170.72,170.68,16.95124273]
[1748470253606,0.28432314,170.72,170.68,16.95124273]
[1748470253801,5.85649038,170.76,170.7,16.95124273]
[1748470254007,5.85649038,170.76,170.67,1.5436]
[1748470254008,0.28432314,170.74,170.71,16.95124273]
[1748470254413,0.28432314,170.74,170.7,16.95124273]
[1748470255433,23.09253083,170.74,170.67,27.5436]
[1748470255601,23.09253083,170.74,170.69,16.95124273]
[1748470255808,23.09253083,170.74,170.67,27.5436]
[1748470255809,17.23556587,170.72,170.67,44.49484273]
[1748470256310,0.28432314,170.7,170.67,18.49484273]
[1748470259222,17.23556587,170.69,170.6,148.4]
[1748470259530,0.28432314,170.69,170.65,16.95124273]
[1748470259698,0.28432314,170.69,170.66,16.95124273]
[1748470260031,0.28432314,170.69,170.67,16.95124273]
[1748470260398,0.28432314,170.69,170.65,16.95124273]
[1748470262899,6.14307242,170.69,170.59,27.5017]
[1748470263122,0.28432314,170.66,170.63,16.95124273]
[1748470265328,17.23556587,170.65,170.59,27.5017]
[1748470265633,17.23556587,170.65,170.6,16.95124273]
[1748470265830,0.28432314,170.63,170.6,16.95124273]
[1748470266034,0.28432314,170.63,170.59,18.45294273]
[1748470266330,17.23556587,170.63,170.59,1.5017]
[1748470266539,17.23556587,170.63,170.56,8.57041096]
[1748470266540,16.95124273,170.6,170.56,8.57041096]
[1748470266740,0.14216157,170.57,170.56,8.57041096]
[1748470266906,0.28432314,170.57,170.56,8.57041096]
[1748470267414,17.23556587,170.57,170.56,8.57041096]
[1748470267621,0.28432314,170.57,170.56,8.57041096]
[1748470270415,9.4,170.58,170.56,25.52165369]
[1748470270621,9.4,170.58,170.57,16.95124273]